[Event "15e Open International d'Echecs Mont de Marsan"]
[Site "Mont de Marsan, France"]
[Date "????.??.??"]
[Round "1.2"]
[White "PENG LI, MIN"]
[Black "GOGUELY, PIERRE"]
[Result "1-0"]
[TimeControl "60 minutes + 30 secondes per move"]
[WhiteTitle "IM"]
[WhiteElo "2442"]
[BlackElo "1840"]

1. Nf3 {[%clk 01:30:57]} {[%emt 00:00:03]} c5 {[%clk 01:30:54]} {[%emt
00:00:05]} 2. g3 {[%clk 01:31:20]} {[%emt 00:00:08]} e6 {[%clk 01:30:38]}
{[%emt 00:00:45]} 3. Bg2 {[%clk 01:31:39]} {[%emt 00:00:11]} Nf6 {[%clk
01:31:00]} {[%emt 00:00:08]} 4. O-O {[%clk 01:32:01]} {[%emt 00:00:08]} Be7
{[%clk 01:30:47]} {[%emt 00:00:43]} 5. c4 {[%clk 01:26:22]} {[%emt 00:06:09]}
Nc6 {[%clk 01:30:13]} {[%emt 00:01:04]} 6. d4 {[%clk 01:26:42]} {[%emt
00:00:10]} cxd4 {[%clk 01:30:14]} {[%emt 00:00:30]} 7. Nxd4 {[%clk 01:27:07]}
{[%emt 00:00:05]} O-O {[%clk 01:28:37]} {[%emt 00:02:06]} 8. Nc3 {[%clk
01:27:21]} {[%emt 00:00:16]} d5 {[%clk 01:24:04]} {[%emt 00:05:03]} 9. cxd5
{[%clk 01:27:37]} {[%emt 00:00:14]} exd5 {[%clk 01:23:58]} {[%emt 00:00:35]} 10.
b3 {[%clk 01:20:23]} {[%emt 00:07:44]} Re8 {[%clk 01:21:19]} {[%emt 00:03:09]}
11. Bb2 {[%clk 01:13:09]} {[%emt 00:07:44]} Bf8 {[%clk 01:20:53]} {[%emt
00:00:57]} 12. Rc1 {[%clk 01:13:09]} {[%emt 00:00:30]} Bg4 {[%clk 01:15:15]}
{[%emt 00:06:07]} 13. h3 {[%clk 01:11:36]} {[%emt 00:02:03]} Bh5 {[%clk
01:15:07]} {[%emt 00:00:38]} 14. Nf3 {[%clk 00:57:21]} {[%emt 00:14:45]} Rc8
{[%clk 01:08:01]} {[%emt 00:07:37]} 15. a3 {[%clk 00:55:28]} {[%emt 00:02:23]}
a6 {[%clk 01:04:06]} {[%emt 00:04:24]} 16. e3 {[%clk 00:51:50]} {[%emt
00:04:08]} d4 {[%clk 00:55:23]} {[%emt 00:09:13]} 17. exd4 {[%clk 00:50:48]}
{[%emt 00:01:32]} Bxf3 {[%clk 00:55:03]} {[%emt 00:00:50]} 18. Bxf3 {[%clk
00:51:05]} {[%emt 00:00:13]} Nxd4 {[%clk 00:53:29]} {[%emt 00:02:04]} 19. Bg2
{[%clk 00:27:28]} {[%emt 00:24:07]} Bxa3 {[%clk 00:44:59]} {[%emt 00:09:00]} 20.
Bxa3 {[%clk 00:26:37]} {[%emt 00:01:20]} Rxc3 {[%clk 00:45:17]} {[%emt
00:00:11]} 21. Rxc3 {[%clk 00:22:43]} {[%emt 00:04:25]} Ne2+ {[%clk 00:45:28]}
{[%emt 00:00:19]} 22. Kh2 {[%clk 00:23:03]} {[%emt 00:00:10]} Nxc3 {[%clk
00:41:49]} {[%emt 00:04:08]} 23. Qxd8 {[%clk 00:21:26]} {[%emt 00:02:07]} Rxd8
{[%clk 00:42:10]} {[%emt 00:00:09]} 24. Bxb7 {[%clk 00:18:54]} {[%emt
00:03:03]} h6 {[%clk 00:37:18]} {[%emt 00:05:22]} 25. Bc5 {[%emt 00:04:11]} Rb8
{[%clk 00:34:56]} {[%emt 00:02:50]} 26. Bxa6 {[%clk 00:15:37]} {[%emt
00:00:08]} Rxb3 {[%clk 00:33:02]} {[%emt 00:02:24]} 27. Rc1 {[%clk 00:14:50]}
{[%emt 00:01:17]} Nce4 {[%clk 00:32:39]} {[%emt 00:00:53]} 28. Be3 {[%clk
00:15:12]} {[%emt 00:00:07]} Rb2 {[%clk 00:26:22]} {[%emt 00:06:47]} 29. Rc8+
{[%clk 00:14:49]} {[%emt 00:00:53]} Kh7 {[%clk 00:26:44]} {[%emt 00:00:08]} 30.
Bd3 {[%clk 00:15:13]} {[%emt 00:00:06]} g6 {[%clk 00:25:06]} {[%emt 00:02:09]}
31. Bxe4 {[%clk 00:15:22]} {[%emt 00:00:21]} Nxe4 {[%clk 00:25:34]} {[%emt
00:00:02]} 32. Bd4 {[%emt 00:01:01]} Rxf2+ 33. Kg1 {[%emt 00:00:06]} Rf6 {[%emt
00:00:05]} 34. Re8 {[%emt 00:00:07]} Nd6 {[%emt 00:00:08]} 35. Rd8 {[%emt
00:00:05]} Ne4 36. Bxf6 Nxf6 1-0

[Event "15e Open International d'Echecs Mont de Marsan"]
[Site "Mont de Marsan, France"]
[Date "????.??.??"]
[Round "1.1"]
[White "COSTA, CLEMENT"]
[Black "PRIE, ERIC"]
[Result "0-1"]
[TimeControl "60 minutes + 30 secondes per move"]
[BlackTitle "GM"]
[WhiteElo "1647"]
[BlackElo "2482"]

1. e4 {[%clk 01:30:56]} {[%emt 00:00:03]} d5 {[%clk 01:30:35]} {[%emt
00:00:26]} 2. exd5 {[%clk 01:31:17]} {[%emt 00:00:09]} Qxd5 {[%clk 01:30:42]}
{[%emt 00:00:23]} 3. Nc3 {[%clk 01:31:27]} {[%emt 00:00:20]} Qa5 {[%clk
01:31:03]} {[%emt 00:00:09]} 4. d4 {[%clk 01:31:42]} {[%emt 00:00:15]} Nf6
{[%clk 01:31:26]} {[%emt 00:00:08]} 5. Bd2 {[%clk 01:31:51]} {[%emt 00:00:22]}
c6 {[%clk 01:31:41]} {[%emt 00:00:14]} 6. Bc4 {[%clk 01:31:48]} {[%emt
00:00:33]} Bf5 {[%clk 01:32:01]} {[%emt 00:00:09]} 7. Nf3 {[%clk 01:31:35]}
{[%emt 00:00:43]} Nbd7 {[%clk 01:32:03]} {[%emt 00:00:29]} 8. O-O {[%clk
01:30:41]} {[%emt 00:01:24]} Qc7 {[%clk 01:32:16]} {[%emt 00:00:16]} 9. Re1
{[%clk 01:29:51]} {[%emt 00:01:21]} e6 {[%clk 01:32:35]} {[%emt 00:00:11]} 10.
Bg5 {[%clk 01:27:08]} {[%emt 00:03:13]} O-O-O {[%clk 01:31:49]} {[%emt
00:01:16]} 11. a3 {[%clk 01:19:42]} {[%emt 00:07:57]} Bd6 {[%clk 01:29:37]}
{[%emt 00:02:41]} 12. b4 {[%clk 01:16:52]} {[%emt 00:03:21]} h6 {[%clk
01:28:37]} {[%emt 00:01:29]} 13. Bh4 {[%clk 01:14:02]} {[%emt 00:03:21]} Bg4
{[%clk 01:20:13]} {[%emt 00:08:54]} 14. Bg3 {[%clk 01:11:04]} {[%emt 00:03:28]}
Bxg3 {[%clk 01:09:12]} {[%emt 00:11:31]} 15. fxg3 {[%clk 01:07:56]} {[%emt
00:03:38]} h5 {[%clk 01:09:16]} {[%emt 00:00:26]} 16. Qd2 {[%clk 01:04:26]}
{[%emt 00:04:00]} h4 {[%clk 01:06:17]} {[%emt 00:03:29]} 17. Nxh4 {[%clk
00:52:33]} {[%emt 00:12:23]} Rh5 {[%clk 01:06:00]} {[%emt 00:00:47]} 18. b5
{[%clk 00:42:09]} {[%emt 00:10:55]} Nb6 {[%clk 01:05:17]} {[%emt 00:01:12]} 19.
Bf1 {[%clk 00:40:15]} {[%emt 00:02:25]} c5 {[%clk 01:05:33]} {[%emt 00:00:13]}
20. Qf2 {[%clk 00:32:26]} {[%emt 00:08:19]} Rxd4 {[%clk 00:58:25]} {[%emt
00:07:38]} 21. Nf3 {[%clk 00:27:01]} {[%emt 00:05:55]} Rd8 {[%clk 00:52:46]}
{[%emt 00:06:09]} 22. Ne4 {[%clk 00:21:04]} {[%emt 00:06:26]} Rdh8 {[%clk
00:48:56]} {[%emt 00:04:20]} 23. Nxf6 {[%clk 00:18:15]} {[%emt 00:03:20]} gxf6
{[%clk 00:48:51]} {[%emt 00:00:35]} 24. Nh4 {[%clk 00:16:13]} {[%emt 00:02:32]}
Nd7 {[%clk 00:45:40]} {[%emt 00:03:40]} 25. Be2 {[%clk 00:11:12]} {[%emt
00:05:30]} Bxe2 {[%clk 00:45:58]} {[%emt 00:00:13]} 26. Rxe2 {[%clk 00:11:11]}
{[%emt 00:00:32]} f5 {[%clk 00:45:17]} {[%emt 00:01:11]} 27. Rf1 {[%clk
00:08:07]} {[%emt 00:03:33]} Nf6 {[%clk 00:45:21]} {[%emt 00:00:26]} 28. Qf4
{[%clk 00:05:28]} {[%emt 00:03:10]} Rd8 {[%clk 00:40:04]} {[%emt 00:05:47]} 29.
Qxc7+ {[%clk 00:05:03]} {[%emt 00:00:55]} Kxc7 {[%clk 00:40:24]} {[%emt
00:00:10]} 30. Nf3 {[%clk 00:04:43]} {[%emt 00:00:50]} Ne4 {[%clk 00:38:03]}
{[%emt 00:02:51]} 31. g4 {[%clk 00:01:43]} {[%emt 00:03:30]} fxg4 {[%clk
00:36:28]} {[%emt 00:02:05]} 32. Rxe4 {[%clk 00:01:59]} {[%emt 00:00:14]} gxf3
{[%clk 00:36:48]} {[%emt 00:00:09]} 33. Rxf3 {[%clk 00:02:17]} {[%emt
00:00:13]} Rh7 {[%clk 00:36:32]} {[%emt 00:00:46]} 34. h3 {[%clk 00:01:58]}
{[%emt 00:00:49]} Kb6 {[%clk 00:35:47]} {[%emt 00:01:14]} 35. a4 {[%clk
00:02:03]} {[%emt 00:00:26]} Rd1+ {[%clk 00:35:03]} {[%emt 00:01:14]} 36. Kf2
{[%clk 00:01:58]} {[%emt 00:00:35]} Rd2+ {[%clk 00:35:20]} {[%emt 00:00:13]} 37.
Re2 {[%clk 00:02:14]} {[%emt 00:00:14]} Rd4 {[%clk 00:35:44]} {[%emt 00:00:06]}
38. Ra3 {[%clk 00:01:38]} {[%emt 00:01:06]} Ka5 {[%clk 00:35:52]} {[%emt
00:00:21]} 39. Re5 {[%clk 00:01:13]} {[%emt 00:00:56]} b6 {[%clk 00:35:36]}
{[%emt 00:00:47]} 40. Kf3 {[%clk 00:01:05]} {[%emt 00:00:38]} Rxa4 {[%clk
00:35:23]} {[%emt 00:00:43]} 41. Rxa4+ {[%clk 00:01:26]} {[%emt 00:00:09]} Kxa4
{[%clk 00:35:45]} {[%emt 00:00:07]} 42. c4 {[%clk 00:01:52]} {[%emt 00:00:04]}
Kb4 {[%clk 00:32:31]} {[%emt 00:03:43]} 43. Re4 {[%clk 00:02:01]} {[%emt
00:00:21]} f5 {[%clk 00:32:49]} {[%emt 00:00:12]} 44. Rxe6 {[%clk 00:01:31]}
{[%emt 00:01:00]} Kxc4 {[%clk 00:33:09]} {[%emt 00:00:10]} 45. Re5 {[%clk
00:01:40]} {[%emt 00:00:22]} Kxb5 {[%clk 00:32:50]} {[%emt 00:00:49]} 46. Rxf5
{[%clk 00:02:06]} {[%emt 00:00:05]} a5 {[%clk 00:32:57]} {[%emt 00:00:23]} 47.
Ke2 {[%clk 00:01:02]} {[%emt 00:01:34]} a4 {[%clk 00:32:45]} {[%emt 00:00:42]}
48. Rf3 {[%clk 00:01:23]} {[%emt 00:00:10]} Kb4 {[%clk 00:30:01]} {[%emt
00:03:13]} 49. Kd2 {[%clk 00:01:14]} {[%emt 00:00:39]} a3 {[%clk 00:30:17]}
{[%emt 00:00:14]} 50. Kc2 {[%clk 00:01:31]} {[%emt 00:00:13]} c4 {[%clk
00:30:17]} {[%emt 00:00:29]} 51. g4 {[%clk 00:01:23]} {[%emt 00:00:39]} Re7
{[%clk 00:30:10]} {[%emt 00:00:37]} 52. Rf2 {[%clk 00:01:02]} {[%emt 00:00:52]}
Re1 {[%clk 00:30:16]} {[%emt 00:00:23]} 53. Kd2 {[%clk 00:00:42]} {[%emt
00:00:51]} Rh1 {[%clk 00:30:28]} {[%emt 00:00:17]} 0-1

[Event "15e Open International d'Echecs Mont de Marsan"]
[Site "Mont de Marsan, France"]
[Date "????.??.??"]
[Round "1.3"]
[White "ASTRUC, IBAN"]
[Black "BERNAL MORO, LUIS JAVIER"]
[Result "0-1"]
[TimeControl "60 minutes + 30 secondes per move"]
[BlackTitle "IM"]
[WhiteElo "1628"]
[BlackElo "2418"]

1. c4 {[%clk 01:30:57]} {[%emt 00:00:02]} g6 {[%clk 01:29:37]} {[%emt
00:01:23]} 2. Nc3 {[%clk 01:31:00]} {[%emt 00:00:26]} Bg7 {[%clk 01:30:01]}
{[%emt 00:00:06]} 3. g3 {[%clk 01:30:34]} {[%emt 00:00:56]} c5 {[%clk
01:28:58]} {[%emt 00:01:33]} 4. Bg2 {[%clk 01:30:25]} {[%emt 00:00:40]} Nc6
{[%clk 01:29:23]} {[%emt 00:00:05]} 5. Nf3 {[%clk 01:29:25]} {[%emt 00:01:29]}
e5 {[%clk 01:28:53]} {[%emt 00:01:00]} 6. d3 {[%clk 01:28:32]} {[%emt
00:01:24]} d6 {[%clk 01:22:14]} {[%emt 00:07:09]} 7. O-O {[%clk 01:25:32]}
{[%emt 00:03:29]} Nge7 {[%clk 01:22:09]} {[%emt 00:00:35]} 8. a3 {[%clk
01:23:37]} {[%emt 00:02:26]} O-O {[%clk 01:20:55]} {[%emt 00:01:43]} 9. Rb1
{[%clk 01:18:38]} {[%emt 00:05:30]} a5 {[%clk 01:19:14]} {[%emt 00:02:11]} 10.
Ne1 {[%clk 01:15:06]} {[%emt 00:04:01]} Be6 {[%clk 01:18:37]} {[%emt 00:01:07]}
11. Nc2 {[%clk 01:12:59]} {[%emt 00:02:38]} d5 {[%clk 01:18:11]} {[%emt
00:00:56]} 12. cxd5 {[%clk 01:11:33]} {[%emt 00:01:56]} Nxd5 {[%clk 01:17:56]}
{[%emt 00:00:45]} 13. Ne3 {[%clk 01:05:55]} {[%emt 00:06:07]} Nb6 {[%clk
01:02:38]} {[%emt 00:15:49]} 14. b3 {[%clk 00:50:57]} {[%emt 00:15:28]} Rb8
{[%clk 00:35:46]} {[%emt 00:27:22]} 15. Nc4 {[%clk 00:45:49]} {[%emt 00:05:38]}
Nd5 {[%clk 00:33:39]} {[%emt 00:02:38]} 16. Bd2 {[%clk 00:39:12]} {[%emt
00:07:05]} Nde7 {[%clk 00:32:07]} {[%emt 00:02:03]} 17. Nb5 {[%clk 00:33:36]}
{[%emt 00:06:06]} b6 {[%clk 00:27:11]} {[%emt 00:05:26]} 18. Bc3 {[%clk
00:28:25]} {[%emt 00:05:41]} Qd7 {[%clk 00:22:49]} {[%emt 00:04:53]} 19. Re1
{[%clk 00:26:00]} {[%emt 00:02:54]} Nd4 {[%clk 00:17:53]} {[%emt 00:05:26]} 20.
Nxd4 {[%clk 00:24:04]} {[%emt 00:02:26]} cxd4 {[%clk 00:17:35]} {[%emt
00:00:48]} 21. Bd2 {[%clk 00:23:45]} {[%emt 00:00:49]} Nd5 {[%clk 00:15:26]}
{[%emt 00:02:39]} 22. Rc1 {[%clk 00:21:34]} {[%emt 00:02:40]} Rfc8 {[%clk
00:12:46]} {[%emt 00:03:11]} 23. Rc2 {[%clk 00:20:06]} {[%emt 00:01:59]} a4
{[%clk 00:10:04]} {[%emt 00:03:12]} 24. b4 {[%clk 00:16:33]} {[%emt 00:04:02]}
b5 {[%clk 00:10:17]} {[%emt 00:00:18]} 25. Na5 {[%clk 00:15:35]} {[%emt
00:01:28]} Nc3 {[%clk 00:07:46]} {[%emt 00:03:02]} 26. Bxc3 {[%clk 00:10:22]}
{[%emt 00:05:43]} dxc3 {[%clk 00:08:07]} {[%emt 00:00:09]} 27. Qb1 {[%clk
00:09:28]} {[%emt 00:01:23]} Rc7 {[%clk 00:07:50]} {[%emt 00:00:48]} 28. Rec1
{[%clk 00:07:48]} {[%emt 00:02:10]} Rbc8 {[%clk 00:08:14]} {[%emt 00:00:06]} 29.
h4 {[%clk 00:05:02]} {[%emt 00:03:16]} Bh6 {[%clk 00:07:07]} {[%emt 00:01:37]}
30. Rd1 {[%clk 00:05:23]} {[%emt 00:00:08]} Bd2 {[%clk 00:07:29]} {[%emt
00:00:09]} 31. Bf3 {[%clk 00:04:13]} {[%emt 00:01:41]} h6 {[%clk 00:07:39]}
{[%emt 00:00:20]} 32. Kh1 {[%clk 00:03:27]} {[%emt 00:01:15]} g5 {[%clk
00:06:16]} {[%emt 00:01:52]} 33. hxg5 {[%clk 00:02:07]} {[%emt 00:01:50]} hxg5
{[%clk 00:06:38]} {[%emt 00:00:09]} 34. Kg1 {[%clk 00:01:21]} {[%emt 00:01:15]}
Kg7 {[%clk 00:06:32]} {[%emt 00:00:37]} 35. Bg2 {[%clk 00:00:47]} {[%emt
00:01:04]} Rh8 {[%clk 00:05:48]} {[%emt 00:01:14]} 36. Bf3 {[%clk 00:00:56]}
{[%emt 00:00:21]} Bd5 {[%clk 00:02:49]} {[%emt 00:03:29]} 37. e4 {[%clk
00:01:10]} {[%emt 00:00:16]} Be6 {[%clk 00:03:10]} {[%emt 00:00:10]} 38. Be2
{[%clk 00:01:11]} {[%emt 00:00:29]} Bg4 {[%clk 00:02:14]} {[%emt 00:01:25]} 39.
Bf1 {[%clk 00:00:36]} {[%emt 00:01:04]} Bf3 {[%clk 00:01:41]} {[%emt 00:01:04]}
40. Bg2 {[%clk 00:00:42]} {[%emt 00:00:25]} Bxg2 {[%clk 00:01:06]} {[%emt
00:01:04]} 41. Kxg2 {[%clk 00:00:48]} {[%emt 00:00:24]} Qh3+ {[%clk 00:01:22]}
{[%emt 00:00:15]} 42. Kf3 {[%clk 00:00:58]} {[%emt 00:00:20]} g4+ {[%clk
00:01:43]} {[%emt 00:00:10]} 43. Ke2 {[%clk 00:01:08]} {[%emt 00:00:19]} Qg2
{[%clk 00:02:06]} {[%emt 00:00:06]} 0-1

[ePGN "0.1;DGT LiveChess/2.2.3"]

[Event "15e Open International d'Echecs Mont de Marsan"]
[Site "Mont de Marsan, France"]
[Date "????.??.??"]
[Round "2.3"]
[White "BERNAL MORO, LUIS JAVIER"]
[Black "BUSSACCHINI, MICHEL"]
[Result "1-0"]
[TimeControl "60 minutes + 30 secondes per move"]
[WhiteTitle "IM"]
[WhiteElo "2418"]
[BlackElo "1897"]

1. c4 {[%clk 01:30:55]} {[%emt 00:00:04]} e6 {[%clk 01:30:02]} {[%emt
00:00:58]} 2. g3 {[%clk 01:31:00]} {[%emt 00:00:27]} f5 {[%clk 01:30:17]}
{[%emt 00:00:14]} 3. Bg2 {[%clk 01:30:55]} {[%emt 00:00:34]} Nf6 {[%clk
01:30:14]} {[%emt 00:00:33]} 4. Nf3 {[%clk 01:29:36]} {[%emt 00:01:49]} c6
{[%clk 01:29:04]} {[%emt 00:01:40]} 5. O-O {[%clk 01:29:43]} {[%emt 00:00:23]}
d5 {[%clk 01:29:23]} {[%emt 00:00:11]} 6. d3 {[%clk 01:28:25]} {[%emt
00:01:48]} Nbd7 {[%clk 01:24:43]} {[%emt 00:05:09]} 7. Nc3 {[%clk 01:27:23]}
{[%emt 00:01:33]} Bb4 {[%clk 01:16:54]} {[%emt 00:08:19]} 8. cxd5 {[%clk
01:14:30]} {[%emt 00:13:23]} Nxd5 {[%clk 01:08:44]} {[%emt 00:08:40]} 9. Bg5
{[%clk 00:59:50]} {[%emt 00:15:10]} Be7 {[%clk 00:50:57]} {[%emt 00:18:16]} 10.
Bd2 {[%clk 00:54:36]} {[%emt 00:05:44]} Bf6 {[%clk 00:40:01]} {[%emt 00:11:26]}
11. d4 {[%clk 00:51:38]} {[%emt 00:03:29]} N7b6 {[%clk 00:33:10]} {[%emt
00:07:21]} 12. Re1 {[%clk 00:39:19]} {[%emt 00:12:49]} O-O {[%clk 00:21:42]}
{[%emt 00:11:58]} 13. e4 {[%clk 00:38:27]} {[%emt 00:01:22]} Nxc3 {[%clk
00:21:15]} {[%emt 00:00:56]} 14. bxc3 {[%clk 00:35:18]} {[%emt 00:03:39]} g6
{[%clk 00:15:37]} {[%emt 00:06:08]} 15. Bh6 {[%clk 00:24:43]} {[%emt 00:11:05]}
Re8 {[%clk 00:13:12]} {[%emt 00:02:55]} 16. h4 {[%clk 00:20:18]} {[%emt
00:04:55]} fxe4 {[%clk 00:06:09]} {[%emt 00:07:33]} 17. Nd2 {[%clk 00:14:53]}
{[%emt 00:05:55]} e5 {[%clk 00:02:22]} {[%emt 00:04:17]} 18. Nxe4 {[%clk
00:15:15]} {[%emt 00:00:08]} Bh8 {[%clk 00:00:42]} {[%emt 00:02:09]} 19. Ng5
{[%clk 00:12:26]} {[%emt 00:03:19]} 1-0

[Event "15e Open International d'Echecs Mont de Marsan"]
[Site "Mont de Marsan, France"]
[Date "????.??.??"]
[Round "2.2"]
[White "FERNANDEZ, LEON"]
[Black "PENG LI, MIN"]
[Result "0-1"]
[TimeControl "60 minutes + 30 secondes per move"]
[BlackTitle "IM"]
[WhiteElo "1931"]
[BlackElo "2442"]

1. e4 {[%clk 01:30:50]} {[%emt 00:00:08]} g6 {[%clk 01:30:20]} {[%emt
00:00:41]} 2. d4 {[%clk 01:30:34]} {[%emt 00:00:46]} Bg7 {[%clk 01:30:45]}
{[%emt 00:00:06]} 3. Nc3 {[%clk 01:30:50]} {[%emt 00:00:13]} d6 {[%clk
01:31:10]} {[%emt 00:00:06]} 4. f4 {[%clk 01:30:49]} {[%emt 00:00:31]} a6
{[%clk 01:31:29]} {[%emt 00:00:11]} 5. a4 {[%clk 01:28:58]} {[%emt 00:02:20]}
Nf6 {[%clk 01:31:54]} {[%emt 00:00:06]} 6. Nf3 {[%clk 01:29:13]} {[%emt
00:00:15]} c5 {[%clk 01:32:20]} {[%emt 00:00:05]} 7. dxc5 {[%clk 01:25:27]}
{[%emt 00:04:16]} Qa5 {[%clk 01:32:39]} {[%emt 00:00:11]} 8. Bd3 {[%clk
01:20:40]} {[%emt 00:05:17]} Qxc5 {[%clk 01:32:52]} {[%emt 00:00:18]} 9. Qe2
{[%clk 01:19:44]} {[%emt 00:01:26]} O-O {[%clk 01:33:15]} {[%emt 00:00:06]} 10.
Qe3 {[%clk 01:14:35]} {[%emt 00:05:39]} Qc7 {[%clk 01:28:54]} {[%emt 00:04:51]}
11. O-O {[%clk 01:14:27]} {[%emt 00:00:38]} Nc6 {[%clk 01:29:17]} {[%emt
00:00:08]} 12. Kh1 {[%clk 01:14:14]} {[%emt 00:00:43]} Nb4 {[%clk 01:28:01]}
{[%emt 00:01:46]} 13. Bd2 {[%clk 01:12:31]} {[%emt 00:02:12]} Be6 {[%clk
01:28:24]} {[%emt 00:00:07]} 14. Rfc1 {[%clk 01:10:04]} {[%emt 00:02:57]} Rfc8
{[%clk 01:16:15]} {[%emt 00:12:40]} 15. Qe2 {[%clk 01:08:10]} {[%emt 00:02:23]}
Qd8 {[%clk 01:08:31]} {[%emt 00:08:14]} 16. Nd1 {[%clk 01:03:01]} {[%emt
00:05:39]} Nc6 {[%clk 01:03:22]} {[%emt 00:05:37]} 17. Bc3 {[%clk 01:02:21]}
{[%emt 00:01:11]} Rab8 {[%clk 01:00:17]} {[%emt 00:03:36]} 18. Ne3 {[%clk
00:58:44]} {[%emt 00:04:07]} Nh5 {[%clk 00:58:36]} {[%emt 00:02:11]} 19. f5
{[%clk 00:56:30]} {[%emt 00:02:45]} Bxc3 {[%clk 00:59:01]} {[%emt 00:00:05]} 20.
bxc3 {[%clk 00:56:54]} {[%emt 00:00:05]} Bd7 {[%clk 00:59:28]} {[%emt
00:00:03]} 21. Qd2 {[%clk 00:54:23]} {[%emt 00:03:00]} Nf6 {[%clk 00:58:13]}
{[%emt 00:01:45]} 22. Qe1 {[%clk 00:53:08]} {[%emt 00:01:45]} Qa5 {[%clk
00:55:38]} {[%emt 00:03:05]} 23. Rcb1 {[%clk 00:48:56]} {[%emt 00:04:43]} Ne5
{[%clk 00:53:41]} {[%emt 00:02:26]} 24. Nxe5 {[%clk 00:47:37]} {[%emt
00:01:50]} Qxe5 {[%clk 00:54:07]} {[%emt 00:00:04]} 25. Nc4 {[%clk 00:47:57]}
{[%emt 00:00:10]} Qc5 {[%clk 00:52:16]} {[%emt 00:02:20]} 26. Nb6 {[%clk
00:47:57]} {[%emt 00:00:31]} Rc6 {[%clk 00:52:10]} {[%emt 00:00:32]} 27. a5
{[%clk 00:47:03]} {[%emt 00:01:28]} Qxc3 {[%clk 00:48:40]} {[%emt 00:04:00]} 28.
Qxc3 {[%clk 00:47:22]} {[%emt 00:00:11]} Rxc3 {[%clk 00:49:07]} {[%emt
00:00:03]} 29. Nxd7 {[%clk 00:47:47]} {[%emt 00:00:05]} Nxd7 {[%clk 00:49:35]}
{[%emt 00:00:02]} 30. fxg6 {[%clk 00:46:20]} {[%emt 00:01:58]} hxg6 {[%clk
00:50:00]} {[%emt 00:00:05]} 31. Kg1 {[%clk 00:46:18]} {[%emt 00:00:32]} Nc5
{[%clk 00:50:23]} {[%emt 00:00:07]} 32. Rd1 {[%clk 00:46:21]} {[%emt 00:00:26]}
Kg7 {[%clk 00:49:37]} {[%emt 00:01:17]} 33. Rab1 {[%clk 00:46:42]} {[%emt
00:00:09]} Kf6 {[%clk 00:48:30]} {[%emt 00:01:37]} 34. Kf2 {[%clk 00:47:02]}
{[%emt 00:00:10]} Rh8 {[%clk 00:48:26]} {[%emt 00:00:34]} 35. h3 {[%clk
00:47:13]} {[%emt 00:00:21]} Rh4 {[%clk 00:48:40]} {[%emt 00:00:14]} 36. Rb4
{[%clk 00:47:18]} {[%emt 00:00:25]} Ke5 {[%clk 00:48:51]} {[%emt 00:00:16]} 37.
g3 {[%clk 00:45:32]} {[%emt 00:02:19]} Rxh3 {[%clk 00:48:26]} {[%emt 00:00:55]}
38. Kg2 {[%clk 00:45:55]} {[%emt 00:00:06]} Rh7 {[%clk 00:48:04]} {[%emt
00:00:52]} 39. Rd2 {[%clk 00:44:26]} {[%emt 00:02:01]} Ra3 {[%clk 00:48:11]}
{[%emt 00:00:22]} 40. Kf3 {[%clk 00:41:40]} {[%emt 00:03:16]} Rxa5 {[%clk
00:48:06]} {[%emt 00:00:36]} 41. Bc4 {[%clk 00:41:47]} {[%emt 00:00:22]} Ra3+
{[%clk 00:48:00]} {[%emt 00:00:36]} 42. Bd3 {[%clk 00:41:42]} {[%emt 00:00:35]}
b5 {[%clk 00:48:14]} {[%emt 00:00:16]} 43. Rd1 {[%clk 00:41:51]} {[%emt
00:00:21]} Rh2 {[%clk 00:48:32]} {[%emt 00:00:11]} 0-1

[Event "15e Open International d'Echecs Mont de Marsan"]
[Site "Mont de Marsan, France"]
[Date "????.??.??"]
[Round "2.1"]
[White "PRIE, ERIC"]
[Black "JOIN, ETIENNE"]
[Result "1-0"]
[TimeControl "60 minutes + 30 secondes per move"]
[WhiteTitle "GM"]
[WhiteElo "2482"]
[BlackElo "1934"]

1. d4 {[%clk 01:18:43]} {[%emt 00:12:16]} f5 {[%clk 01:30:44]} {[%emt
00:00:17]} 2. Bg5 {[%clk 01:19:03]} {[%emt 00:00:10]} g6 {[%clk 01:29:18]}
{[%emt 00:01:57]} 3. Nc3 {[%clk 01:19:24]} {[%emt 00:00:09]} Bg7 {[%clk
01:28:52]} {[%emt 00:00:55]} 4. h4 {[%clk 01:19:43]} {[%emt 00:00:12]} h6
{[%clk 01:18:56]} {[%emt 00:10:27]} 5. Bf4 {[%clk 01:20:04]} {[%emt 00:00:08]}
d6 {[%clk 01:15:44]} {[%emt 00:03:43]} 6. e4 {[%clk 01:20:21]} {[%emt
00:00:13]} fxe4 {[%clk 01:07:46]} {[%emt 00:08:28]} 7. Nxe4 {[%clk 01:20:35]}
{[%emt 00:00:15]} e5 {[%clk 01:05:22]} {[%emt 00:02:53]} 8. dxe5 {[%clk
01:18:04]} {[%emt 00:03:02]} dxe5 {[%clk 01:05:14]} {[%emt 00:00:38]} 9. Qxd8+
{[%clk 01:18:26]} {[%emt 00:00:08]} Kxd8 {[%clk 01:05:39]} {[%emt 00:00:05]} 10.
O-O-O+ {[%clk 01:18:48]} {[%emt 00:00:08]} Ke8 {[%clk 01:00:49]} {[%emt
00:05:20]} 11. Bg3 {[%clk 01:16:12]} {[%emt 00:03:06]} Ne7 {[%clk 00:54:12]}
{[%emt 00:07:08]} 12. Nf3 {[%clk 01:15:09]} {[%emt 00:01:32]} Nbc6 {[%clk
00:52:15]} {[%emt 00:02:27]} 13. Bc4 {[%clk 00:57:09]} {[%emt 00:18:30]} Bg4
{[%clk 00:45:16]} {[%emt 00:07:30]} 14. Nc5 {[%clk 00:53:59]} {[%emt 00:03:39]}
Rd8 {[%clk 00:30:23]} {[%emt 00:15:23]} 15. Rxd8+ {[%clk 00:51:40]} {[%emt
00:02:50]} Nxd8 {[%clk 00:29:53]} {[%emt 00:00:59]} 16. Nxe5 {[%clk 00:51:25]}
{[%emt 00:00:44]} Bxe5 {[%clk 00:30:03]} {[%emt 00:00:21]} 17. Bxe5 {[%clk
00:51:30]} {[%emt 00:00:25]} Rf8 {[%clk 00:29:56]} {[%emt 00:00:37]} 18. f3
{[%clk 00:51:30]} {[%emt 00:00:30]} Rf5 {[%clk 00:29:42]} {[%emt 00:00:44]} 19.
Nd3 {[%clk 00:51:27]} {[%emt 00:00:33]} 1-0

[ePGN "0.1;DGT LiveChess/2.2.3"]